bitfinex/quotes_SOLUSD_20230702
["timestamp","ask_amount","ask_price","bid_price","bid_amount"]
[1688337413820,76.666,19.722,19.712,21.458]
[1688337416141,76.666,19.722,19.709,21.461]
[1688337419945,21.448,19.722,19.713,21.457]
[1688337420442,21.448,19.722,19.716,21.454]
[1688337421532,55.194,19.731,19.719,21.45]
[1688337421725,21.441,19.728,19.723,21.446]
[1688337421931,21.441,19.729,19.723,21.446]
[1688337422834,21.438,19.731,19.723,21.446]
[1688337423024,55.176,19.737,19.723,21.446]
[1688337423221,21.438,19.731,19.723,21.446]
[1688337424925,21.438,19.731,19.72,21.43]
[1688337425135,21.438,19.731,19.721,55.0]
[1688337425429,21.438,19.731,19.723,21.446]
[1688337427330,21.438,19.731,19.721,55.0]
[1688337427331,21.438,19.731,19.721,21.448]
[1688337428651,21.438,19.731,19.718,94.4269]
[1688337428833,177.394,19.725,19.708,55.255]
[1688337429244,177.394,19.725,19.704,126.2053]
[1688337429441,177.394,19.725,19.71,21.461]
[1688337431048,55.0,19.724,19.706,106.49]
[1688337431242,55.0,19.724,19.71,21.46]
[1688337431243,76.678,19.719,19.71,21.46]
[1688337432560,21.451,19.719,19.71,21.46]
[1688337433440,55.259,19.726,19.71,42.92]
[1688337433646,21.445,19.725,19.715,21.455]
[1688337434860,21.445,19.725,19.702,51.23]
[1688337435151,21.445,19.725,19.713,21.456]
[1688337435348,21.445,19.725,19.703,30.0]
[1688337435349,20.0,19.724,19.703,30.0]
[1688337435559,21.46,19.72,19.705,21.466]
[1688337435745,177.473,19.716,19.7,55.277]
[1688337436744,177.473,19.716,19.701,55.0]
[1688337437554,177.473,19.716,19.7,55.0]
[1688337439346,76.69,19.716,19.7,55.0]
[1688337439552,21.455,19.716,19.7,76.46]
[1688337439943,21.455,19.716,19.701,20.0]
[1688337440151,21.455,19.716,19.702,55.0]
[1688337440341,21.455,19.716,19.703,20.0]
[1688337440548,21.455,19.716,19.704,55.0]
[1688337440749,21.455,19.716,19.705,20.0]
[1688337440951,21.455,19.716,19.706,55.0]
[1688337441346,21.453,19.718,19.707,96.72]
[1688337441544,21.453,19.718,19.708,55.0]
[1688337441746,21.453,19.718,19.711,21.46]
[1688337443740,21.451,19.719,19.711,21.46]
[1688337444139,155.94,19.726,19.711,21.46]
[1688337444361,21.448,19.722,19.712,55.0]
[1688337444552,21.448,19.722,19.717,21.452]
[1688337446768,55.188,19.733,19.717,122.227]
[1688337447058,55.188,19.733,19.722,21.447]
[1688337447059,76.624,19.733,19.722,21.447]
[1688337447439,76.624,19.733,19.715,55.235]
[1688337447641,76.624,19.733,19.716,20.0]
[1688337447859,76.624,19.733,19.717,55.0]
[1688337448856,76.624,19.733,19.716,20.0]
[1688337449251,76.624,19.733,19.719,21.451]
[1688337452550,21.436,19.733,19.72,55.0]
[1688337452759,55.171,19.739,19.723,177.4]
[1688337453059,21.435,19.734,19.728,21.441]
[1688337453540,100.657,19.741,19.728,21.441]
[1688337453743,21.432,19.737,19.728,21.441]
[1688337455058,100.668,19.741,19.728,21.441]
[1688337455260,21.432,19.737,19.728,21.441]
[1688337458056,55.167,19.741,19.728,21.441]
[1688337458258,55.158,19.744,19.728,21.441]
[1688337458755,55.149,19.747,19.728,21.441]
[1688337458962,21.426,19.742,19.728,21.441]
[1688337460856,21.426,19.742,19.732,21.436]
[1688337465664,21.426,19.742,19.731,55.192]
[1688337465665,21.426,19.742,19.731,21.438]
[1688337465868,21.426,19.742,19.732,21.437]
[1688337467176,21.426,19.742,19.726,55.204]
[1688337467355,21.426,19.742,19.727,20.0]
[1688337468148,21.426,19.742,19.729,21.439]
[1688337468880,20.0,19.741,19.72,21.46]
[1688337469177,21.434,19.735,19.725,21.443]
[1688337470162,21.434,19.735,19.728,21.44]
[1688337471275,21.434,19.735,19.721,153.4837]
[1688337472173,21.434,19.735,19.725,21.444]
[1688337472376,21.434,19.735,19.723,21.446]
[1688337473275,21.434,19.735,19.721,119.7127]
[1688337473469,21.434,19.735,19.722,21.447]
[1688337474476,21.434,19.735,19.722,21.448]
[1688337476457,21.434,19.735,19.723,55.0]
[1688337476675,21.434,19.735,19.725,21.444]
[1688337477463,21.434,19.735,19.722,21.447]
[1688337479663,21.434,19.735,19.721,21.449]
[1688337481581,21.434,19.735,19.72,21.45]
[1688337482079,177.35,19.73,19.718,21.451]
[1688337482469,177.35,19.73,19.712,10.83719922]
[1688337482470,55.0,19.729,19.712,10.83719922]
[1688337482667,76.658,19.724,19.715,21.454]
[1688337483080,76.658,19.724,19.709,92.5439]
[1688337483081,76.658,19.724,19.712,21.458]
[1688337483684,76.658,19.724,19.71,21.46]
[1688337485106,55.0,19.723,19.708,21.462]
[1688337485287,177.446,19.719,19.708,21.462]
[1688337486180,177.446,19.719,19.707,21.464]
[1688337486383,177.446,19.719,19.706,21.465]
[1688337486897,177.446,19.719,19.704,21.467]
[1688337488767,76.678,19.719,19.704,21.467]
[1688337488973,21.451,19.719,19.705,75.0]
[1688337489269,21.451,19.719,19.709,21.462]
[1688337495791,122.216,19.719,19.706,77.2978]
[1688337496089,122.216,19.719,19.707,20.0]
[1688337496481,122.216,19.719,19.709,21.461]
[1688337497797,122.216,19.719,19.702,55.27]
[1688337497995,122.216,19.719,19.697,51.23]
[1688337498183,110.455,19.725,19.709,21.461]
[1688337498388,21.451,19.719,19.709,21.461]
[1688337499086,21.45,19.72,19.712,76.701]
[1688337499481,21.449,19.721,19.712,76.701]
[1688337504994,21.449,19.721,19.712,21.458]
[1688337505599,21.449,19.721,19.7,21.41]
[1688337505788,20.0,19.72,19.706,21.465]
[1688337506000,76.688,19.716,19.706,21.465]
[1688337506299,76.688,19.716,19.703,85.811]
[1688337506478,76.688,19.716,19.705,21.466]
[1688337506680,76.688,19.716,19.703,85.811]
[1688337506899,76.688,19.716,19.693,10.83719922]
[1688337507079,76.688,19.716,19.703,21.468]
[1688337507584,131.967,19.716,19.703,21.468]
[1688337508783,76.688,19.716,19.703,21.468]
[1688337511999,76.688,19.716,19.704,55.0]
[1688337512501,76.688,19.716,19.707,21.463]
[1688337512681,76.688,19.716,19.704,55.0]
[1688337513101,76.688,19.716,19.695,51.23]
[1688337513402,76.688,19.716,19.7,21.471]
[1688337514500,76.688,19.716,19.701,55.0]
[1688337514702,76.688,19.716,19.703,21.468]
[1688337516596,76.688,19.716,19.704,55.0]
[1688337516597,21.454,19.716,19.704,55.0]
[1688337516801,21.454,19.716,19.707,21.463]
[1688337517108,21.454,19.716,19.706,21.465]
[1688337518406,21.454,19.716,19.705,21.466]
[1688337519701,21.454,19.716,19.701,93.1823]
[1688337520902,21.454,19.716,19.704,21.467]
[1688337524509,21.454,19.716,19.705,55.0]
[1688337524708,21.454,19.716,19.708,21.463]
[1688337525219,21.454,19.716,19.711,21.459]
[1688337525399,21.453,19.717,19.711,21.459]
[1688337525796,21.452,19.718,19.711,21.459]
[1688337528496,21.451,19.72,19.711,21.459]
[1688337529113,21.449,19.721,19.711,21.459]
[1688337529404,21.447,19.723,19.716,21.454]
[1688337531098,21.447,19.723,19.714,21.455]
[1688337544928,100.807,19.729,19.71,98.6279]
[1688337545226,21.447,19.723,19.714,21.455]
[1688337546719,21.447,19.723,19.714,20.955]
[1688337547823,21.445,19.725,19.714,20.955]
[1688337548023,21.445,19.725,19.715,55.0]
[1688337548205,21.38,19.74,19.718,21.452]
[1688337548400,100.681,19.736,19.719,55.0]
[1688337548620,21.436,19.733,19.725,21.444]
[1688337548799,21.436,19.733,19.724,21.445]
[1688337549006,21.436,19.733,19.723,21.446]
[1688337553126,21.436,19.733,19.726,21.443]
[1688337553528,55.168,19.74,19.727,55.0]
[1688337553708,21.43,19.738,19.73,21.438]
[1688337557622,20.93,19.738,19.73,21.438]
[1688337559019,55.168,19.744,19.731,55.0]
[1688337559218,21.428,19.74,19.734,21.434]
[1688337559826,21.428,19.74,19.724,100.737]
[1688337560011,21.428,19.74,19.726,21.443]
[1688337562223,42.678,19.74,19.726,21.443]
[1688337562433,21.428,19.74,19.726,21.443]
[1688337564125,21.428,19.74,19.727,75.0]
[1688337564339,21.428,19.74,19.73,76.631]
[1688337564631,21.428,19.74,19.733,21.435]
[1688337567226,21.428,19.74,19.728,95.9583]
[1688337567413,21.428,19.74,19.732,21.437]
[1688337569429,21.428,19.74,19.728,95.9583]
[1688337569637,21.428,19.74,19.727,86.03819922]
[1688337569819,21.428,19.74,19.724,55.209]
[1688337570023,21.428,19.74,19.726,21.443]
[1688337570231,42.888,19.74,19.724,21.445]
[1688337570538,42.888,19.74,19.721,145.4943]
[1688337571229,42.888,19.74,19.725,21.444]
[1688337573324,76.615,19.735,19.725,21.444]
[1688337575317,76.615,19.735,19.724,21.445]
[1688337575526,76.615,19.735,19.723,21.446]
[1688337578024,55.0,19.734,19.714,10.83719922]
[1688337578337,76.64,19.729,19.72,21.45]
[1688337578928,76.64,19.729,19.719,21.451]
[1688337581639,76.64,19.729,19.714,55.237]
[1688337582346,76.64,19.729,19.716,21.454]
[1688337583642,76.64,19.729,19.711,90.2739]
[1688337583944,76.655,19.725,19.711,90.2739]
[1688337584249,76.655,19.725,19.714,21.455]
[1688337597970,76.655,19.725,19.713,21.457]
[1688337601159,76.655,19.725,19.711,111.7329]
[1688337602363,76.655,19.725,19.711,21.459]
[1688337607376,55.0,19.724,19.704,97.8287]
[1688337607566,21.452,19.718,19.709,21.461]
[1688337610869,55.219,19.722,19.709,21.461]
[1688337611076,21.452,19.718,19.709,21.461]
[1688337618272,55.216,19.723,19.709,21.461]
[1688337618482,21.45,19.72,19.71,76.26]
[1688337618675,21.45,19.72,19.713,21.456]
[1688337621381,21.45,19.72,19.712,21.458]
[1688337622369,21.45,19.72,19.711,21.459]
[1688337622674,21.45,19.72,19.71,21.46]
[1688337629800,21.45,19.72,19.71,42.71]
[1688337634879,110.448,19.727,19.71,42.71]
[1688337635085,55.205,19.727,19.711,55.0]
[1688337635286,21.447,19.723,19.715,76.688]
[1688337635585,21.447,19.723,19.716,55.0]
[1688337635777,21.447,19.723,19.718,21.452]
[1688337635976,21.446,19.724,19.718,21.452]
[1688337636690,21.444,19.726,19.718,21.452]
[1688337636894,76.625,19.733,19.724,21.444]
[1688337637098,21.436,19.733,19.725,55.0]
[1688337637390,21.436,19.733,19.726,21.443]
[1688337638295,21.436,19.733,19.72,113.906]
[1688337638478,21.436,19.733,19.721,21.449]
[1688337638884,21.436,19.733,19.72,113.906]
[1688337638885,21.436,19.733,19.72,135.356]
[1688337639092,21.436,19.733,19.72,135.166]
[1688337646181,21.44,19.73,19.72,92.446]
[1688337646494,76.647,19.727,19.719,21.451]
[1688337650490,21.443,19.727,19.719,21.451]
[1688337652610,21.443,19.727,19.71,21.44]
[1688337652807,21.443,19.727,19.713,21.457]
[1688337652999,55.0,19.726,19.713,21.457]
[1688337653194,100.716,19.729,19.713,21.457]
[1688337653195,21.441,19.729,19.713,21.457]
[1688337653394,55.231,19.731,19.713,21.457]
[1688337653395,21.444,19.726,19.713,21.457]
[1688337655502,21.444,19.726,19.712,21.458]
[1688337656212,329.044,19.726,19.712,21.458]
[1688337657810,55.0,19.725,19.712,21.458]
[1688337658021,21.35,19.72,19.709,21.461]
[1688337658190,21.453,19.717,19.709,21.461]
[1688337659611,21.453,19.717,19.7,423.57]
[1688337659908,76.58,19.72,19.702,21.469]
[1688337659909,76.706,19.712,19.702,21.469]
[1688337660508,55.0,19.711,19.7,21.471]
[1688337660720,76.72,19.708,19.7,21.471]
[1688337661095,76.72,19.708,19.698,21.474]
[1688337661405,76.72,19.708,19.697,21.475]
[1688337662298,76.72,19.708,19.672,363.72151444]
[1688337662299,76.74,19.703,19.693,21.479]
[1688337664207,76.74,19.703,19.686,100.933]
[1688337664508,21.473,19.699,19.687,55.313]
[1688337664695,21.473,19.699,19.684,153.5634]
[1688337664896,21.473,19.699,19.685,20.0]
[1688337665103,21.473,19.699,19.69,21.482]
[1688337666296,55.0,19.698,19.686,21.486]
[1688337666498,21.478,19.695,19.687,20.0]
[1688337666709,21.478,19.695,19.687,41.485]
[1688337668795,21.478,19.695,19.685,21.487]
[1688337668992,55.0,19.694,19.684,98.2404]
[1688337669193,21.481,19.691,19.682,21.491]
[1688337669401,21.481,19.691,19.68,21.493]
[1688337669997,55.0,19.69,19.677,86.514]
[1688337670204,21.487,19.687,19.677,108.01]
[1688337671518,21.487,19.687,19.678,20.0]
[1688337671815,21.487,19.687,19.68,21.493]
[1688337671995,408.494,19.694,19.68,21.493]
[1688337672197,362.6,19.693,19.68,21.493]
[1688337672401,21.486,19.687,19.68,21.493]
[1688337673511,156.19,19.694,19.68,21.493]
[1688337673823,21.483,19.69,19.68,21.493]
[1688337675109,42.976,19.69,19.68,21.493]
[1688337675325,42.976,19.69,19.678,20.0]
[1688337675614,42.976,19.69,19.678,41.495]
[1688337675819,21.487,19.686,19.678,41.495]
[1688337676404,21.487,19.686,19.678,20.0]
[1688337678217,21.487,19.686,19.675,21.498]
[1688337678517,21.487,19.686,19.671,55.358]
[1688337678721,21.487,19.686,19.676,21.497]
[1688337679602,122.408,19.69,19.68,21.492]
[1688337679603,21.487,19.687,19.68,21.492]
[1688337682216,21.487,19.687,19.672,101.005]
[1688337682410,21.487,19.687,19.672,55.355]
[1688337683228,21.487,19.687,19.671,93.5281]
[1688337683429,362.6,19.686,19.672,21.502]
[1688337683628,177.776,19.682,19.672,21.502]
[1688337684129,177.776,19.682,19.663,642.53]
[1688337684330,76.844,19.676,19.664,50.0]
[1688337684826,76.844,19.676,19.667,21.507]
[1688337685028,76.844,19.676,19.668,20.0]
[1688337685244,21.498,19.676,19.67,21.504]
[1688337685410,21.498,19.676,19.665,55.376]
[1688337685411,21.498,19.676,19.669,21.505]
[1688337690244,21.498,19.676,19.668,21.506]
[1688337694933,21.498,19.676,19.663,55.381]
[1688337695131,21.498,19.676,19.668,21.506]
[1688337695436,21.498,19.676,19.662,55.383]
[1688337695733,21.498,19.676,19.666,21.508]
[1688337696230,21.498,19.676,19.665,21.51]
[1688337696639,21.498,19.676,19.664,21.51]
[1688337697734,76.862,19.672,19.663,21.512]
[1688337698929,21.503,19.672,19.663,21.512]
[1688337699236,21.503,19.672,19.664,55.0]
[1688337699532,21.503,19.672,19.665,21.509]
[1688337699726,21.503,19.672,19.664,21.511]
[1688337699920,21.503,19.672,19.662,21.512]
[1688337700115,21.503,19.672,19.656,91.7074]
[1688337700316,21.503,19.672,19.659,21.515]
[1688337701341,21.33,19.67,19.651,55.415]
[1688337701517,21.511,19.665,19.657,21.018]
[1688337702719,21.511,19.665,19.655,21.52]
[1688337703324,21.511,19.665,19.642,55.44]
[1688337703325,382.6,19.664,19.642,55.44]
[1688337703530,382.6,19.664,19.633,402.3]
[1688337703531,177.995,19.658,19.644,94.9589]
[1688337703827,177.995,19.658,19.641,30.0]
[1688337703828,485.595,19.658,19.641,30.0]
[1688337704019,485.595,19.658,19.634,94.9589]
[1688337704020,178.062,19.651,19.634,94.9589]
[1688337704825,178.062,19.651,19.63,72.85]
[1688337705024,178.062,19.651,19.63,94.47]
[1688337705232,178.062,19.651,19.63,72.85]
[1688337705740,178.062,19.651,19.635,21.542]
[1688337706835,178.062,19.651,19.636,20.0]
[1688337707026,178.062,19.651,19.64,21.537]
[1688337707426,178.062,19.651,19.639,21.538]
[1688337707634,178.062,19.651,19.64,55.0]
[1688337707831,178.062,19.651,19.643,21.534]
[1688337708346,178.062,19.651,19.636,20.0]
[1688337708524,178.062,19.651,19.635,41.542]
[1688337708723,307.6,19.65,19.635,41.542]
[1688337708923,178.105,19.646,19.635,41.542]
[1688337709137,21.531,19.646,19.635,41.542]
[1688337709440,21.531,19.646,19.635,20.0]
[1688337709645,21.531,19.646,19.624,51.23]
[1688337709935,21.531,19.646,19.63,21.548]
[1688337710139,21.531,19.646,19.629,21.549]
[1688337710455,178.16,19.64,19.623,402.3]
[1688337710620,178.16,19.64,19.621,89.3478]
[1688337710825,178.16,19.64,19.627,21.551]
[1688337711429,178.16,19.64,19.625,21.553]
[1688337711636,178.16,19.64,19.62,21.62]
[1688337711637,20.0,19.639,19.62,21.62]
[1688337711833,20.0,19.639,19.626,21.552]
[1688337711834,21.545,19.634,19.626,21.552]
[1688337712340,21.545,19.634,19.618,21.561]
[1688337712564,55.0,19.633,19.61,25.60492349]
[1688337712727,178.267,19.628,19.611,25.60492349]
[1688337713026,178.267,19.628,19.612,2.53676941]
[1688337713027,77.034,19.628,19.612,2.53676941]
[1688337713226,21.551,19.628,19.615,67.39129971]
[1688337713421,21.551,19.628,19.615,45.82729971]
[1688337713940,110.468,19.633,19.616,21.563]
[1688337713941,21.546,19.632,19.616,21.563]
[1688337714119,55.452,19.639,19.616,21.563]
[1688337714120,21.544,19.634,19.616,21.563]
[1688337714525,350.688,19.634,19.616,21.563]
[1688337714929,362.6,19.633,19.617,20.0]
[1688337715128,21.55,19.629,19.617,20.0]
[1688337715632,21.553,19.626,19.614,20.0]
[1688337715848,21.553,19.626,19.612,53.76676941]
[1688337715849,21.553,19.626,19.613,20.0]
[1688337716142,21.553,19.626,19.615,21.564]
[1688337716443,21.553,19.626,19.616,20.0]
[1688337716826,21.55,19.629,19.618,21.561]
[1688337717045,21.544,19.634,19.622,21.557]
[1688337717246,21.55,19.629,19.614,95.6042]
[1688337717451,21.55,19.629,19.612,2.53676941]
[1688337717643,21.55,19.629,19.616,21.563]
[1688337717943,21.55,19.629,19.612,2.53676941]
[1688337717944,307.6,19.623,19.612,2.53676941]
[1688337718143,307.6,19.623,19.583,591.3]
[1688337718144,307.6,19.619,19.586,21.596]
[1688337718359,350.791,19.61,19.581,25.53199696]
[1688337718570,350.791,19.61,19.579,21.604]
[1688337718571,75.0,19.609,19.579,21.604]
[1688337718732,200.109,19.6,19.573,153.399644]
[1688337719039,200.139,19.6,19.575,21.608]
[1688337719239,21.581,19.6,19.58,21.62]
[1688337719543,21.581,19.6,19.586,21.597]
[1688337719746,21.579,19.602,19.586,21.597]
[1688337720346,43.172,19.6,19.586,19.097]
[1688337720552,43.172,19.6,19.57,21.62]
[1688337720755,43.172,19.6,19.581,21.602]
[1688337720930,21.582,19.6,19.581,21.602]
[1688337721329,40.78958844,19.608,19.581,21.602]
[1688337721648,21.62,19.6,19.581,21.602]
[1688337721856,20.0,19.599,19.581,21.602]
[1688337722146,20.0,19.599,19.56,144.424]
[1688337722147,21.62,19.59,19.56,144.424]
[1688337722357,21.62,19.59,19.572,21.612]
[1688337722657,307.6,19.598,19.573,77.247]
[1688337722947,20.0,19.599,19.573,77.247]
[1688337723137,102.227852,19.598,19.573,77.247]
[1688337723333,20.0,19.597,19.573,77.247]
[1688337723634,43.01,19.59,19.561,153.3276]
[1688337723838,102.227852,19.598,19.561,153.3276]
[1688337723839,102.227852,19.598,19.574,21.609]
[1688337724752,307.6,19.597,19.581,21.601]
[1688337724953,102.227852,19.598,19.581,21.601]
[1688337725329,10.86,19.62,19.582,85.83719922]
[1688337725529,10.87,19.63,19.602,21.579]
[1688337726053,13.87,19.63,19.611,21.569]
[1688337726259,13.87,19.63,19.602,10.83719922]
[1688337726556,13.87,19.63,19.61,21.57]
[1688337726557,55.0,19.63,19.61,21.57]
[1688337726933,376.47,19.63,19.61,21.57]
[1688337727136,10.36163443,19.629,19.61,21.57]
[1688337727448,55.0,19.63,19.61,21.57]
[1688337727640,55.0,19.63,19.611,55.0]
[1688337727844,55.0,19.63,19.616,21.563]
[1688337728044,383.83163443,19.63,19.613,21.566]
[1688337728343,10.36163443,19.629,19.613,21.566]
[1688337729056,10.36163443,19.629,19.599,101.378]
[1688337729359,10.85,19.62,19.6,21.581]
[1688337729655,10.85,19.61,19.596,21.585]
[1688337729862,10.85,19.61,19.591,0.06324443]
[1688337730036,10.85,19.6,19.572,55.637]
[1688337730438,307.6,19.598,19.578,21.604]
[1688337730653,10.85,19.6,19.578,21.604]
[1688337730654,66.487,19.6,19.578,21.604]
[1688337730854,307.6,19.598,19.578,21.604]
[1688337731058,307.6,19.596,19.578,21.604]
[1688337731262,307.6,19.596,19.565,3.0]
[1688337731263,10.85,19.59,19.56,10.88]
[1688337731460,10.85,19.59,19.568,21.616]
[1688337731760,55.0,19.589,19.568,77.268]
[1688337732054,55.0,19.589,19.57,10.85]
[1688337732244,10.85,19.6,19.575,77.238]
[1688337732445,55.0,19.599,19.575,77.238]
[1688337732647,307.6,19.598,19.575,21.608]
[1688337732839,307.6,19.598,19.55,10.85]
[1688337732840,10.76,19.59,19.55,10.85]
[1688337733159,10.36163443,19.589,19.562,77.292]
[1688337733343,55.0,19.589,19.562,74.792]
[1688337733660,10.36163443,19.594,19.562,74.792]
[1688337733872,10.76,19.59,19.563,99.5153]
[1688337734164,55.0,19.597,19.562,74.792]
[1688337734165,10.85,19.6,19.571,77.256]
[1688337734341,43.4,19.62,19.578,178.719]
[1688337734342,99.5153,19.592,19.578,178.719]
[1688337734538,21.21163443,19.61,19.583,178.668]
[1688337734735,10.36163443,19.61,19.591,77.174]
[1688337734956,307.6,19.618,19.591,21.59]
[1688337735166,10.36163443,19.617,19.591,21.59]
[1688337735659,10.36163443,19.617,19.599,178.524]
[1688337735838,154.0,19.639,19.605,178.473]
[1688337735839,307.6,19.628,19.605,178.473]
[1688337736038,307.6,19.628,19.6,85.85]
[1688337736039,10.83,19.64,19.615,77.08]
[1688337736268,10.36163443,19.639,19.615,77.08]
[1688337736760,10.36163443,19.639,19.615,21.564]
[1688337737068,21.541,19.637,19.615,21.564]
[1688337737252,307.6,19.638,19.616,20.0]
[1688337737454,43.67826526,19.647,19.622,21.556]
[1688337737455,55.432,19.646,19.622,21.556]
[1688337737654,21.543,19.635,19.619,21.56]
[1688337737843,21.543,19.635,19.616,21.563]
[1688337738039,10.24272649,19.634,19.601,99.9098]
[1688337738243,10.24272649,19.634,19.617,21.562]
[1688337738555,10.24272649,19.634,19.617,77.075]
[1688337738744,31.78672649,19.634,19.617,77.075]
[1688337738944,339.38672649,19.634,19.617,21.562]
[1688337739148,10.85,19.63,19.58,43.4]
[1688337739343,10.85,19.63,19.608,21.571]
[1688337739344,21.558,19.622,19.608,21.571]
[1688337739745,10.24272649,19.621,19.593,21.588]
[1688337739957,21.567,19.613,19.593,21.588]
[1688337740152,10.24272649,19.621,19.593,21.588]
[1688337740153,55.0,19.612,19.593,21.588]
[1688337740356,21.57,19.611,19.593,21.588]
[1688337740857,21.56,19.62,19.593,32.42519922]
[1688337741063,21.554,19.625,19.612,21.568]
[1688337741238,21.551,19.628,19.612,21.568]
[1688337741640,21.551,19.628,19.603,94.0342]
[1688337741843,307.6,19.627,19.603,21.577]
[1688337742149,21.56,19.619,19.6,21.58]
[1688337742862,21.56,19.619,19.597,21.583]
[1688337743077,21.56,19.619,19.598,20.0]
[1688337743078,55.0,19.618,19.598,20.0]
[1688337743364,21.568,19.612,19.598,20.0]
[1688337743537,55.0,19.611,19.59,90.6436]
[1688337743743,21.573,19.608,19.59,90.6436]
[1688337744055,21.573,19.608,19.58,413.05]
[1688337744056,21.581,19.601,19.58,10.83719922]
[1688337744247,10.85,19.6,19.573,90.6436]
[1688337744450,486.226,19.589,19.563,30.0]
[1688337744658,486.226,19.589,19.55,10.85]
[1688337744867,10.89,19.59,19.55,10.85]
[1688337744868,307.6,19.587,19.553,21.633]
[1688337745043,77.234,19.577,19.555,24.63]
[1688337745243,21.607,19.577,19.555,24.63]
[1688337745560,21.604,19.58,19.555,21.63]
[1688337745864,55.0,19.588,19.555,21.63]
[1688337745865,21.606,19.578,19.555,21.63]
[1688337746159,362.6,19.577,19.551,21.634]
[1688337746461,21.615,19.57,19.555,21.631]
[1688337746660,21.615,19.57,19.545,55.715]
[1688337746856,21.615,19.57,19.548,96.7097]
[1688337747158,21.617,19.568,19.549,21.637]
[1688337747460,55.0,19.567,19.549,21.637]
[1688337747656,76.618,19.567,19.549,21.637]
[1688337748361,363.215,19.581,19.549,21.637]
[1688337748570,21.61,19.574,19.549,21.637]
[1688337748862,10.24272649,19.588,19.55,20.0]
[1688337749044,55.0,19.574,19.557,77.31]
[1688337749248,21.603,19.581,19.557,77.31]
[1688337749447,21.603,19.581,19.558,113.5436]